Workbook

Sheet CNSS-012023FEUIL1
A1: République Tunisienne
A2: Minisrère des Affaires Sociales de la Solidarité | H2: DECLARARTION TRIMESTRIELLE DES SALARIES ET DES SALAIRES
A3: et des Tunisiens à l'etranager | H3: doit être remise à la Caisse sous peine de pénalités dans les 15 premiers jours qui suivent le trimestre
A4: CAISSE NATIONALE DE SECURITE SOCIALE
A5: Bureau Régionale Sfax Centre
K6: NOM ET ADRESSE DE L'EMPLOYEUR
A7: N° Employeur : | D7: ='CNSS ACHRAF SF1694 012023'!W21 -> 242758 | F7: ='CNSS ACHRAF SF1694 012023'!Y21 -> 64 | H7: Code d'exploitation | K7: ='CNSS ACHRAF SF1694 012023'!W6 -> 0
A8: BR | D8: Trimestre | F8: ='CNSS ACHRAF SF1694 012023'!Z21 -> 1 | H8: 00
A9: Page N° | B9: 1 | D9: Année | F9: ='CNSS ACHRAF SF1694 012023'!AA21 -> 2023 | K9: ='CNSS ACHRAF SF1694 012023'!W9 -> 0
A11: N° Ordre | B11: MATRICULE | D11: IDENTITE DU SALARIE (1) | I11: N° | J11: Catég | K11: REMUNERATION MENSUELLE | N11: Reports des Montants
I12: chez | J12: Profession | N12: 0
C13: Clé | I13: l'EMP | J13: nelle | K13: Janvier | L13: Février | M13: Mars
A14: 1 | B14: ='CNSS ACHRAF SF1694 012023'!I5 -> 99999999 | C14: ='CNSS ACHRAF SF1694 012023'!J5 -> 1 | D14: ='CNSS ACHRAF SF1694 012023'!K5 -> AAAAAAAAAAAAAAAAA | K14: ='CNSS ACHRAF SF1694 012023'!Q5 -> 2000000 | L14: ='CNSS ACHRAF SF1694 012023'!R5 -> 2100000 | M14: ='CNSS ACHRAF SF1694 012023'!S5 -> 1950000 | N14: =SUM(K14:M14) -> 6050000
A15: 2 | B15: ='CNSS ACHRAF SF1694 012023'!I6 -> 88888888 | C15: ='CNSS ACHRAF SF1694 012023'!J6 -> 2 | D15: ='CNSS ACHRAF SF1694 012023'!K6 -> BBBBBBBBBBBBBBBBBB | K15: ='CNSS ACHRAF SF1694 012023'!Q6 -> 1975000 | L15: ='CNSS ACHRAF SF1694 012023'!R6 -> 2075000 | M15: ='CNSS ACHRAF SF1694 012023'!S6 -> 1925000 | N15: =SUM(K15:M15) -> 5975000
A16: 3 | B16: ='CNSS ACHRAF SF1694 012023'!I7 -> 77777777 | C16: ='CNSS ACHRAF SF1694 012023'!J7 -> 3 | D16: ='CNSS ACHRAF SF1694 012023'!K7 -> CCCCCCCCCCCCCCCCCC | K16: ='CNSS ACHRAF SF1694 012023'!Q7 -> 1950000 | L16: ='CNSS ACHRAF SF1694 012023'!R7 -> 2050000 | M16: ='CNSS ACHRAF SF1694 012023'!S7 -> 1900000 | N16: 5900000
A17: 4 | B17: ='CNSS ACHRAF SF1694 012023'!I8 -> 66666666 | C17: ='CNSS ACHRAF SF1694 012023'!J8 -> 4 | D17: ='CNSS ACHRAF SF1694 012023'!K8 -> DDDDDDDDDDDDDDDD | K17: ='CNSS ACHRAF SF1694 012023'!Q8 -> 1925000 | L17: ='CNSS ACHRAF SF1694 012023'!R8 -> 2025000 | M17: ='CNSS ACHRAF SF1694 012023'!S8 -> 1875000 | N17: 5825000
A18: 5 | B18: ='CNSS ACHRAF SF1694 012023'!I9 -> 55555555 | C18: ='CNSS ACHRAF SF1694 012023'!J9 -> 5 | D18: ='CNSS ACHRAF SF1694 012023'!K9 -> EEEEEEEEEEEEEEEEEEEE | K18: ='CNSS ACHRAF SF1694 012023'!Q9 -> 1900000 | L18: ='CNSS ACHRAF SF1694 012023'!R9 -> 2000000 | M18: ='CNSS ACHRAF SF1694 012023'!S9 -> 1850000 | N18: 5750000
A19: 6 | B19: ='CNSS ACHRAF SF1694 012023'!I10 -> 44444444 | C19: ='CNSS ACHRAF SF1694 012023'!J10 -> 6 | D19: ='CNSS ACHRAF SF1694 012023'!K10 -> FFFFFFFFFFFFFFFFFFFFF | K19: ='CNSS ACHRAF SF1694 012023'!Q10 -> 1875000 | L19: ='CNSS ACHRAF SF1694 012023'!R10 -> 1975000 | M19: ='CNSS ACHRAF SF1694 012023'!S10 -> 1825000 | N19: 5675000
A20: 7 | B20: ='CNSS ACHRAF SF1694 012023'!I11 -> 33333333 | C20: ='CNSS ACHRAF SF1694 012023'!J11 -> 7 | D20: ='CNSS ACHRAF SF1694 012023'!K11 -> GGGGGGGGGGGGGGGGG | K20: ='CNSS ACHRAF SF1694 012023'!Q11 -> 1850000 | L20: ='CNSS ACHRAF SF1694 012023'!R11 -> 1950000 | M20: ='CNSS ACHRAF SF1694 012023'!S11 -> 1800000 | N20: 5600000
A21: 8 | B21: ='CNSS ACHRAF SF1694 012023'!I12 -> 22222222 | C21: ='CNSS ACHRAF SF1694 012023'!J12 -> 7 | D21: ='CNSS ACHRAF SF1694 012023'!K12 -> HHHHHHHHHHHHHHHHH | K21: ='CNSS ACHRAF SF1694 012023'!Q12 -> 1825000 | L21: ='CNSS ACHRAF SF1694 012023'!R12 -> 1925000 | M21: ='CNSS ACHRAF SF1694 012023'!S12 -> 1775000 | N21: 5525000
A22: 9 | B22: ='CNSS ACHRAF SF1694 012023'!I13 -> 11111111 | C22: ='CNSS ACHRAF SF1694 012023'!J13 -> 7 | D22: ='CNSS ACHRAF SF1694 012023'!K13 -> IIIIIIIIIIIIIIIIIIIIIIIIIIIIIIII | K22: ='CNSS ACHRAF SF1694 012023'!Q13 -> 1800000 | L22: ='CNSS ACHRAF SF1694 012023'!R13 -> 1900000 | M22: ='CNSS ACHRAF SF1694 012023'!S13 -> 1750000 | N22: 5450000
A23: 10 | B23: ='CNSS ACHRAF SF1694 012023'!I14 -> 17777777 | C23: ='CNSS ACHRAF SF1694 012023'!J14 -> 7 | D23: ='CNSS ACHRAF SF1694 012023'!K14 -> JJJJJJJJJJJJJJJJJJJJJJJJJJJJJJ | K23: ='CNSS ACHRAF SF1694 012023'!Q14 -> 1775000 | L23: ='CNSS ACHRAF SF1694 012023'!R14 -> 1875000 | M23: ='CNSS ACHRAF SF1694 012023'!S14 -> 1725000 | N23: 5375000
A24: 11 | B24: ='CNSS ACHRAF SF1694 012023'!I15 -> 18888887 | C24: ='CNSS ACHRAF SF1694 012023'!J15 -> 7 | D24: ='CNSS ACHRAF SF1694 012023'!K15 -> KKKKKKKKKKKKKKKKKKKK | K24: ='CNSS ACHRAF SF1694 012023'!Q15 -> 1750000 | L24: ='CNSS ACHRAF SF1694 012023'!R15 -> 1850000 | M24: ='CNSS ACHRAF SF1694 012023'!S15 -> 1700000 | N24: 5300000
A25: 12 | B25: ='CNSS ACHRAF SF1694 012023'!I16 -> 19999998 | C25: ='CNSS ACHRAF SF1694 012023'!J16 -> 7 | D25: ='CNSS ACHRAF SF1694 012023'!K16 -> LLLLLLLLLLLLLLLLLLLLLLLLLLL | K25: ='CNSS ACHRAF SF1694 012023'!Q16 -> 1725000 | L25: ='CNSS ACHRAF SF1694 012023'!R16 -> 1825000 | M25: ='CNSS ACHRAF SF1694 012023'!S16 -> 1675000 | N25: 5225000
A27: Certifié Sincère et conforme à nos documents comptables et arrêté à la somme de : | M27: Total à Reporter | N27: =SUM(N12:N25) -> 67650000
A29: (1) l'identité doit être conforme à la carte d'assuré ou à l'extrait de naissance | M29: TOTAL GENERAL | N29: =N27 -> 67650000
A30: (2)L'arrêté doit correspondre au total des salaires déclarés pendant le trimestre (à indiquer sur la dernière page).
A32: Nom Opérateur | D32: DERGAA ACHRAF
A33: N° de Tél | D33: 21415415 | L33: Fait à Sfax le | M33: =TODAY() -> 2023-01-27
L34: Cachet et Signature de l'Employeur
L35: ( sur toutes les pages )

Sheet CNSS-012023FEUIL2
A1: République Tunisienne
A2: Minisrère des Affaires Sociales de la Solidarité | H2: DECLARARTION TRIMESTRIELLE DES SALARIES ET DES SALAIRES
A3: et des Tunisiens à l'etranager | H3: doit être remise à la Caisse sous peine de pénalités dans les 15 premiers jours qui suivent le trimestre
A4: CAISSE NATIONALE DE SECURITE SOCIALE
A5: Bureau Régionale Sfax Centre
K6: NOM ET ADRESSE DE L'EMPLOYEUR
A7: N° Employeur : | D7: ='CNSS ACHRAF SF1694 012023'!W21 -> 242758 | F7: ='CNSS ACHRAF SF1694 012023'!Y21 -> 64 | H7: Code d'exploitation | K7: ='CNSS ACHRAF SF1694 012023'!W6 -> 0
A8: BR | D8: Trimestre | F8: ='CNSS ACHRAF SF1694 012023'!Z21 -> 1 | H8: 00
A9: Page N° | B9: 2 | D9: Année | F9: ='CNSS ACHRAF SF1694 012023'!AA21 -> 2023 | K9: ='CNSS ACHRAF SF1694 012023'!W9 -> 0
A11: N° Ordre | B11: MATRICULE | D11: IDENTITE DU SALARIE (1) | I11: N° | J11: Catég | K11: REMUNERATION MENSUELLE | N11: Reports des Montants
I12: chez | J12: Profession | N12: ='CNSS-012023FEUIL1 '!N27 -> 67650000
C13: Clé | I13: l'EMP | J13: nelle | K13: Janvier | L13: Février | M13: Mars
A14: 13 | B14: ='CNSS ACHRAF SF1694 012023'!I17 -> 21111119 | C14: ='CNSS ACHRAF SF1694 012023'!J17 -> 7 | D14: ='CNSS ACHRAF SF1694 012023'!K17 -> MMMMMMMMMMMM | K14: ='CNSS ACHRAF SF1694 012023'!Q17 -> 1700000 | L14: ='CNSS ACHRAF SF1694 012023'!R17 -> 1800000 | M14: ='CNSS ACHRAF SF1694 012023'!S17 -> 1650000 | N14: =SUM(K14:M14) -> 5150000
A15: 14 | B15: ='CNSS ACHRAF SF1694 012023'!I18 -> 22222220 | C15: ='CNSS ACHRAF SF1694 012023'!J18 -> 7 | D15: ='CNSS ACHRAF SF1694 012023'!K18 -> NNNNNNNNNNNNNNNN | K15: ='CNSS ACHRAF SF1694 012023'!Q18 -> 1675000 | L15: ='CNSS ACHRAF SF1694 012023'!R18 -> 1775000 | M15: ='CNSS ACHRAF SF1694 012023'!S18 -> 1625000 | N15: =SUM(K15:M15) -> 5075000
A16: 15 | B16: ='CNSS ACHRAF SF1694 012023'!I19 -> 0 | C16: ='CNSS ACHRAF SF1694 012023'!J19 -> 0 | D16: ='CNSS ACHRAF SF1694 012023'!K19 -> 0 | K16: ='CNSS ACHRAF SF1694 012023'!Q19 -> 0 | L16: ='CNSS ACHRAF SF1694 012023'!R19 -> 0 | M16: ='CNSS ACHRAF SF1694 012023'!S19 -> 0 | N16: 0
A17: 16 | B17: ='CNSS ACHRAF SF1694 012023'!I20 -> 0 | C17: ='CNSS ACHRAF SF1694 012023'!J20 -> 0 | D17: ='CNSS ACHRAF SF1694 012023'!K20 -> 0 | K17: ='CNSS ACHRAF SF1694 012023'!Q20 -> 0 | L17: ='CNSS ACHRAF SF1694 012023'!R20 -> 0 | M17: ='CNSS ACHRAF SF1694 012023'!S20 -> 0 | N17: 0
A18: 17 | B18: ='CNSS ACHRAF SF1694 012023'!I21 -> 0 | C18: ='CNSS ACHRAF SF1694 012023'!J21 -> 0 | D18: ='CNSS ACHRAF SF1694 012023'!K21 -> 0 | K18: ='CNSS ACHRAF SF1694 012023'!Q21 -> 0 | L18: ='CNSS ACHRAF SF1694 012023'!R21 -> 0 | M18: ='CNSS ACHRAF SF1694 012023'!S21 -> 0 | N18: 0
A19: 18 | B19: ='CNSS ACHRAF SF1694 012023'!I22 -> 0 | C19: ='CNSS ACHRAF SF1694 012023'!J22 -> 0 | D19: ='CNSS ACHRAF SF1694 012023'!K22 -> 0 | K19: ='CNSS ACHRAF SF1694 012023'!Q22 -> 0 | L19: ='CNSS ACHRAF SF1694 012023'!R22 -> 0 | M19: ='CNSS ACHRAF SF1694 012023'!S22 -> 0 | N19: 0
A20: 19 | B20: ='CNSS ACHRAF SF1694 012023'!I23 -> 0 | C20: ='CNSS ACHRAF SF1694 012023'!J23 -> 0 | D20: ='CNSS ACHRAF SF1694 012023'!K23 -> 0 | K20: ='CNSS ACHRAF SF1694 012023'!Q23 -> 0 | L20: ='CNSS ACHRAF SF1694 012023'!R23 -> 0 | M20: ='CNSS ACHRAF SF1694 012023'!S23 -> 0 | N20: 0
A21: 20 | B21: ='CNSS ACHRAF SF1694 012023'!I24 -> 0 | C21: ='CNSS ACHRAF SF1694 012023'!J24 -> 0 | D21: ='CNSS ACHRAF SF1694 012023'!K24 -> 0 | K21: ='CNSS ACHRAF SF1694 012023'!Q24 -> 0 | L21: ='CNSS ACHRAF SF1694 012023'!R24 -> 0 | M21: ='CNSS ACHRAF SF1694 012023'!S24 -> 0 | N21: 0
A22: 21 | B22: ='CNSS ACHRAF SF1694 012023'!I25 -> 2999999 | C22: ='CNSS ACHRAF SF1694 012023'!J25 -> 7 | D22: ='CNSS ACHRAF SF1694 012023'!K25 -> OOOOOOOOOOOOOOO | K22: ='CNSS ACHRAF SF1694 012023'!Q25 -> 500000 | L22: ='CNSS ACHRAF SF1694 012023'!R25 -> 500000 | M22: ='CNSS ACHRAF SF1694 012023'!S25 -> 500000 | N22: 1500000
A23: 22 | B23: ='CNSS ACHRAF SF1694 012023'!I26 -> 31111108 | C23: ='CNSS ACHRAF SF1694 012023'!J26 -> 7 | D23: ='CNSS ACHRAF SF1694 012023'!K26 -> PPPPPPPPPPPPPPPPPP | K23: ='CNSS ACHRAF SF1694 012023'!Q26 -> 600000 | L23: ='CNSS ACHRAF SF1694 012023'!R26 -> 600000 | M23: ='CNSS ACHRAF SF1694 012023'!S26 -> 600000 | N23: 1800000
A24: 23 | B24: ='CNSS ACHRAF SF1694 012023'!I27 -> 3222219 | C24: ='CNSS ACHRAF SF1694 012023'!J27 -> 7 | D24: ='CNSS ACHRAF SF1694 012023'!K27 -> QQQQQQQQQQQQQQ | K24: ='CNSS ACHRAF SF1694 012023'!Q27 -> 600000 | L24: ='CNSS ACHRAF SF1694 012023'!R27 -> 600000 | M24: ='CNSS ACHRAF SF1694 012023'!S27 -> 600000 | N24: 1800000
A25: 24 | B25: ='CNSS ACHRAF SF1694 012023'!I28 -> 333330 | C25: ='CNSS ACHRAF SF1694 012023'!J28 -> 7 | D25: ='CNSS ACHRAF SF1694 012023'!K28 -> RRRRRRRRRRRRRRRRRR | K25: ='CNSS ACHRAF SF1694 012023'!Q28 -> 1000000 | L25: ='CNSS ACHRAF SF1694 012023'!R28 -> 1000000 | M25: ='CNSS ACHRAF SF1694 012023'!S28 -> 1000000 | N25: 3000000
A27: Certifié Sincère et conforme à nos documents comptables et arrêté à la somme de : | M27: Total à Reporter | N27: =SUM(N12:N25) -> 85975000
A29: (1) l'identité doit être conforme à la carte d'assuré ou à l'extrait de naissance | M29: TOTAL GENERAL | N29: =N27 -> 85975000
A30: (2)L'arrêté doit correspondre au total des salaires déclarés pendant le trimestre (à indiquer sur la dernière page).
A32: Nom Opérateur | D32: DERGAA ACHRAF
A33: N° de Tél | D33: 21415415 | L33: Fait à Sfax le | M33: =TODAY() -> 2023-01-27
L34: Cachet et Signature de l'Employeur
L35: ( sur toutes les pages )

Sheet CNSS ACHRAF SF1694 012023
A1: CHALUTIER ACHRAF SF 1694 | P1: 1ER TRIMESTRE 2023
B2: 8c | C2: 2c | D2: 4c | E2: 1c | F2: 4c | G2: 3c | H2: 2c | I2: 8c | J2: 2c | K2: 60c | L2: 8c | T2: 10c | U2: 10c
B3: N° Employeur | D3: Code d'Exploitation | E3: Période | G3: N° Page | H3: N° Ligne | I3: N° Assuré Social | K3: Identité Assuré | L3: CIN | M3: Date de Naissance | N3: Situation Familiale | O3: Nombre Enfants | P3: Poste | Q3: Janvier | R3: Février | S3: Mars | T3: Salaire a déclarer | U3: Zone vierge
B4: Matricule | C4: Clé | E4: Trimestre | F4: Année | I4: Matricule | J4: Clé
A5: 1 | B5: =$W$21 -> 242758 | C5: =$Y$21 -> 64 | D5: 0000 | E5: 1 | F5: 2023 | G5: 001 | H5: 01 | I5: 99999999 | J5: 1 | K5: AAAAAAAAAAAAAAAAA | L5: 11111111 | M5: 1952-10-01 | N5: M | O5: 1 | P5: PATRON | Q5: 2000000 | R5: 2100000 | S5: 1950000 | T5: =SUM(Q5:S5) -> 6050000 | U5: 0000000000 | W5: NOM DE L'EMPLOYEUR
A6: 2 | B6: 242758 | C6: 64 | D6: 0000 | E6: 1 | F6: 2023 | G6: 001 | H6: 02 | I6: 88888888 | J6: 2 | K6: BBBBBBBBBBBBBBBBBB | L6: 22222222 | M6: 1960-12-01 | N6: M | O6: 2 | P6: AIDE PATRON | Q6: 1975000 | R6: 2075000 | S6: 1925000 | T6: =SUM(Q6:S6) -> 5975000 | U6: 0000000000
A7: 3 | B7: 242758 | C7: 64 | D7: 0000 | E7: 1 | F7: 2023 | G7: 001 | H7: 03 | I7: 77777777 | J7: 3 | K7: CCCCCCCCCCCCCCCCCC | L7: 33333333 | M7: 1960-12-02 | N7: M | O7: 0 | P7: ='[1]CHALUTIER ACHRAF SF1694 01-2023'!I6 -> MECANICIEN | Q7: 1950000 | R7: 2050000 | S7: 1900000 | T7: 5900000 | U7: 0000000000
A8: 4 | B8: 242758 | C8: 64 | D8: 0000 | E8: 1 | F8: 2023 | G8: 001 | H8: 04 | I8: 66666666 | J8: 4 | K8: DDDDDDDDDDDDDDDD | L8: 44444444 | M8: 1960-12-03 | N8: C | O8: ='[1]CHALUTIER ACHRAF SF1694 01-2023'!H7 -> 0 | P8: CUISINIER | Q8: 1925000 | R8: 2025000 | S8: 1875000 | T8: 5825000 | U8: 0000000000 | W8: ADRESSE DE L'EMPLOYEUR
A9: 5 | B9: 242758 | C9: 64 | D9: 0000 | E9: 1 | F9: 2023 | G9: 001 | H9: 05 | I9: 55555555 | J9: 5 | K9: EEEEEEEEEEEEEEEEEEEE | L9: 55555555 | M9: 1960-12-04 | N9: C | O9: ='[1]CHALUTIER ACHRAF SF1694 01-2023'!H8 -> 0 | P9: MARIN | Q9: 1900000 | R9: 2000000 | S9: 1850000 | T9: 5750000 | U9: 0000000000
A10: 6 | B10: 242758 | C10: 64 | D10: 0000 | E10: 1 | F10: 2023 | G10: 001 | H10: 06 | I10: 44444444 | J10: 6 | K10: FFFFFFFFFFFFFFFFFFFFF | L10: 66666666 | M10: 1960-12-05 | N10: M | O10: 1 | P10: MARIN | Q10: 1875000 | R10: 1975000 | S10: 1825000 | T10: 5675000 | U10: 0000000000
A11: 7 | B11: 242758 | C11: 64 | D11: 0000 | E11: 1 | F11: 2023 | G11: 001 | H11: 07 | I11: 33333333 | J11: 7 | K11: GGGGGGGGGGGGGGGGG | L11: 77777777 | M11: 1960-12-06 | N11: M | O11: 2 | P11: MARIN | Q11: 1850000 | R11: 1950000 | S11: 1800000 | T11: 5600000 | U11: 0000000000
A12: 8 | B12: 242758 | C12: 64 | D12: 0000 | E12: 1 | F12: 2023 | G12: 001 | H12: 08 | I12: 22222222 | J12: 7 | K12: HHHHHHHHHHHHHHHHH | L12: 88888888 | M12: 1960-12-07 | N12: M | O12: 3 | P12: MARIN | Q12: 1825000 | R12: 1925000 | S12: 1775000 | T12: 5525000 | U12: 0000000000 | W12: NOM DE L'OPERATEUR
A13: 9 | B13: 242758 | C13: 64 | D13: 0000 | E13: 1 | F13: 2023 | G13: 001 | H13: 09 | I13: 11111111 | J13: 7 | K13: IIIIIIIIIIIIIIIIIIIIIIIIIIIIIIII | L13: 99999999 | M13: 1960-12-08 | N13: C | O13: ='[1]CHALUTIER ACHRAF SF1694 01-2023'!H12 -> 0 | P13: MARIN | Q13: 1800000 | R13: 1900000 | S13: 1750000 | T13: 5450000 | U13: 0000000000
A14: 10 | B14: 242758 | C14: 64 | D14: 0000 | E14: 1 | F14: 2023 | G14: 001 | H14: 10 | I14: 17777777 | J14: 7 | K14: JJJJJJJJJJJJJJJJJJJJJJJJJJJJJJ | L14: 1000000 | M14: 1960-12-09 | N14: C | O14: ='[1]CHALUTIER ACHRAF SF1694 01-2023'!H13 -> 0 | P14: MARIN | Q14: 1775000 | R14: 1875000 | S14: 1725000 | T14: 5375000 | U14: 0000000000 | W14: NUMERO DE TELEPHONE DE L'OPERATEUR
A15: 11 | B15: 242758 | C15: 64 | D15: 0000 | E15: 1 | F15: 2023 | G15: 001 | H15: 11 | I15: 18888887 | J15: 7 | K15: KKKKKKKKKKKKKKKKKKKK | L15: 1000001 | M15: 1960-12-10 | N15: C | O15: ='[1]CHALUTIER ACHRAF SF1694 01-2023'!H14 -> 0 | P15: MARIN | Q15: 1750000 | R15: 1850000 | S15: 1700000 | T15: 5300000 | U15: 0000000000
A16: 12 | B16: 242758 | C16: 64 | D16: 0000 | E16: 1 | F16: 2023 | G16: 001 | H16: 12 | I16: 19999998 | J16: 7 | K16: LLLLLLLLLLLLLLLLLLLLLLLLLLL | L16: 1000002 | M16: 1960-12-11 | N16: C | O16: ='[1]CHALUTIER ACHRAF SF1694 01-2023'!H15 -> 0 | P16: MARIN | Q16: 1725000 | R16: 1825000 | S16: 1675000 | T16: 5225000 | U16: 0000000000
A17: 13 | B17: 242758 | C17: 64 | D17: 0000 | E17: 1 | F17: 2023 | G17: 002 | H17: 01 | I17: 21111119 | J17: 7 | K17: MMMMMMMMMMMM | L17: 1000003 | M17: 1960-12-12 | N17: C | O17: ='[1]CHALUTIER ACHRAF SF1694 01-2023'!H16 -> 0 | P17: MARIN | Q17: 1700000 | R17: 1800000 | S17: 1650000 | T17: 5150000 | U17: 0000000000
A18: 14 | B18: 242758 | C18: 64 | D18: 0000 | E18: 1 | F18: 2023 | G18: 002 | H18: 02 | I18: 22222220 | J18: 7 | K18: NNNNNNNNNNNNNNNN | L18: 1000004 | M18: 1960-12-13 | N18: C | O18: ='[1]CHALUTIER ACHRAF SF1694 01-2023'!H17 -> 0 | P18: MARIN | Q18: 1675000 | R18: 1775000 | S18: 1625000 | T18: 5075000 | U18: 0000000000
A19: 15 | B19: 242758 | C19: 64 | D19: 0000 | E19: 1 | F19: 2023 | G19: 002 | H19: 03 | I19: 0 | J19: 0 | K19: ='[1]CHALUTIER ACHRAF SF1694 01-2023'!B18 -> 0 | L19: 0 | M19: ='[1]CHALUTIER ACHRAF SF1694 01-2023'!D18 -> 00:00:00 | N19: ='[1]CHALUTIER ACHRAF SF1694 01-2023'!G18 -> 0 | O19: ='[1]CHALUTIER ACHRAF SF1694 01-2023'!H18 -> 0 | P19: ='[1]CHALUTIER ACHRAF SF1694 01-2023'!I18 -> 0 | Q19: 0 | R19: 0 | S19: 0 | T19: 0 | U19: 0000000000 | W19: N° EMPLOYEUR | Z19: TRIMESTRE | AA19: ANNEE
A20: 16 | B20: 242758 | C20: 64 | D20: 0000 | E20: 1 | F20: 2023 | G20: 002 | H20: 04 | I20: 0 | J20: 0 | K20: ='[1]CHALUTIER ACHRAF SF1694 01-2023'!B19 -> 0 | L20: 0 | M20: ='[1]CHALUTIER ACHRAF SF1694 01-2023'!D19 -> 00:00:00 | N20: ='[1]CHALUTIER ACHRAF SF1694 01-2023'!G19 -> 0 | O20: ='[1]CHALUTIER ACHRAF SF1694 01-2023'!H19 -> 0 | P20: ='[1]CHALUTIER ACHRAF SF1694 01-2023'!I19 -> 0 | Q20: 0 | R20: 0 | S20: 0 | T20: 0 | U20: 0000000000 | W20: Matricule | Y20: Clé
A21: 17 | B21: 242758 | C21: 64 | D21: 0000 | E21: 1 | F21: 2023 | G21: 002 | H21: 05 | I21: 0 | J21: 0 | K21: ='[1]CHALUTIER ACHRAF SF1694 01-2023'!B20 -> 0 | L21: 0 | M21: ='[1]CHALUTIER ACHRAF SF1694 01-2023'!D20 -> 00:00:00 | N21: ='[1]CHALUTIER ACHRAF SF1694 01-2023'!G20 -> 0 | O21: ='[1]CHALUTIER ACHRAF SF1694 01-2023'!H20 -> 0 | P21: ='[1]CHALUTIER ACHRAF SF1694 01-2023'!I20 -> 0 | Q21: 0 | R21: 0 | S21: 0 | T21: 0 | U21: 0000000000 | W21: 242758 | Y21: 64 | Z21: 1 | AA21: 2023
A22: 18 | B22: 242758 | C22: 64 | D22: 0000 | E22: 1 | F22: 2023 | G22: 002 | H22: 06 | I22: 0 | J22: 0 | K22: ='[1]CHALUTIER ACHRAF SF1694 01-2023'!B21 -> 0 | L22: 0 | M22: ='[1]CHALUTIER ACHRAF SF1694 01-2023'!D21 -> 00:00:00 | N22: ='[1]CHALUTIER ACHRAF SF1694 01-2023'!G21 -> 0 | O22: ='[1]CHALUTIER ACHRAF SF1694 01-2023'!H21 -> 0 | P22: ='[1]CHALUTIER ACHRAF SF1694 01-2023'!I21 -> 0 | Q22: 0 | R22: 0 | S22: 0 | T22: 0 | U22: 0000000000 | W22: Sécurité Sociale | Z22: 0.2575 | AA22: =Q30*Z22 -> 22138562.5
A23: 19 | B23: 242758 | C23: 64 | D23: 0000 | E23: 1 | F23: 2023 | G23: 002 | H23: 07 | I23: 0 | J23: 0 | K23: ='[1]CHALUTIER ACHRAF SF1694 01-2023'!B22 -> 0 | L23: 0 | M23: ='[1]CHALUTIER ACHRAF SF1694 01-2023'!D22 -> 00:00:00 | N23: ='[1]CHALUTIER ACHRAF SF1694 01-2023'!G22 -> 0 | O23: ='[1]CHALUTIER ACHRAF SF1694 01-2023'!H22 -> 0 | P23: ='[1]CHALUTIER ACHRAF SF1694 01-2023'!I22 -> 0 | Q23: 0 | R23: 0 | S23: 0 | T23: 0 | U23: 0000000000 | W23: Accident Travail | Z23: 0.006 | AA23: =Q30*Z23 -> 515850
A24: 20 | B24: 242758 | C24: 64 | D24: 0000 | E24: 1 | F24: 2023 | G24: 002 | H24: 08 | I24: 0 | J24: 0 | K24: ='[1]CHALUTIER ACHRAF SF1694 01-2023'!B23 -> 0 | L24: 0 | M24: ='[1]CHALUTIER ACHRAF SF1694 01-2023'!D23 -> 00:00:00 | N24: ='[1]CHALUTIER ACHRAF SF1694 01-2023'!G23 -> 0 | O24: ='[1]CHALUTIER ACHRAF SF1694 01-2023'!H23 -> 0 | P24: ='[1]CHALUTIER ACHRAF SF1694 01-2023'!I23 -> 0 | Q24: 0 | R24: 0 | S24: 0 | T24: 0 | U24: 0000000000 | W24: Montant a payer | Z24: =SUM(AA22:AB23) -> 22654412.5
A25: 21 | B25: 242758 | C25: 64 | D25: 0000 | E25: 1 | F25: 2023 | G25: 002 | H25: 09 | I25: 2999999 | J25: 7 | K25: OOOOOOOOOOOOOOO | L25: 1000011 | M25: ='[1]CHALUTIER ACHRAF SF1694 01-2023'!D24 -> 00:00:00 | N25: M | O25: 1 | P25: ='[1]CHALUTIER ACHRAF SF1694 01-2023'!I24 -> GARDIEN | Q25: 500000 | R25: 500000 | S25: 500000 | T25: 1500000 | U25: 0000000000
A26: 22 | B26: 242758 | C26: 64 | D26: 0000 | E26: 1 | F26: 2023 | G26: 002 | H26: 10 | I26: 31111108 | J26: 7 | K26: PPPPPPPPPPPPPPPPPP | L26: 1000012 | M26: ='[1]CHALUTIER ACHRAF SF1694 01-2023'!D25 -> 00:00:00 | N26: M | O26: 1 | P26: ='[1]CHALUTIER ACHRAF SF1694 01-2023'!I25 -> PORTEFAIX | Q26: 600000 | R26: 600000 | S26: 600000 | T26: 1800000 | U26: 0000000000
A27: 23 | B27: 242758 | C27: 64 | D27: 0000 | E27: 1 | F27: 2023 | G27: 002 | H27: 11 | I27: 3222219 | J27: 7 | K27: QQQQQQQQQQQQQQ | L27: 1000013 | M27: ='[1]CHALUTIER ACHRAF SF1694 01-2023'!D26 -> 00:00:00 | N27: M | O27: 0 | P27: ='[1]CHALUTIER ACHRAF SF1694 01-2023'!I26 -> CHEF D'ARMEMENT | Q27: 600000 | R27: 600000 | S27: 600000 | T27: 1800000 | U27: 0000000000
A28: 24 | B28: 242758 | C28: 64 | D28: 0000 | E28: 1 | F28: 2023 | G28: 002 | H28: 12 | I28: 333330 | J28: 7 | K28: RRRRRRRRRRRRRRRRRR | L28: 1000014 | M28: ='[1]CHALUTIER ACHRAF SF1694 01-2023'!D27 -> 00:00:00 | N28: C | O28: ='[1]CHALUTIER ACHRAF SF1694 01-2023'!H27 -> 0 | P28: ='[1]CHALUTIER ACHRAF SF1694 01-2023'!I27 -> COMPTABLE | Q28: 1000000 | R28: 1000000 | S28: 1000000 | T28: 3000000 | U28: 0000000000
Q29: =SUM(Q5:Q28) -> 28425000 | R29: =SUM(R5:R28) -> 29825000 | S29: =SUM(S5:S28) -> 27725000 | T29: =SUM(T5:T28) -> 85975000
B30: On commence a enregistrer ligne par ligne sauf si le salaire à declarer <> 0 et chaque 12 lignes on change le numero de page ( 1 puis 2 ….) | Q30: =SUM(Q29:S29) -> 85975000
B31: Structure du fichier comme suit sans espace sauf pour l'identité d Assuré qui doit etre sur 6 caracteres (espace compris ) :
B41: Le fichier doit etre entregistrer sur ce repertoire : C:\DECLARATION_CNSS avec comme nom : MatriculeEmployeur-Clé_Code d'exploitation_trimestreAnnee | N41: 00242758-64_0000_12023

Sheet RECAP_SALAIRE T1
A1: ETAT RECAPITULATIF DES SALAIRES ET APPOINTEMENTS
A2: République Tunisienne | I2: الجمهورية التونسية
A3: Ministère des Affaires Sociales de la Solidarité | I3: وزارة الشؤون الاجتماعية و التضامن
A4: et des Tunisiens à l'étranger | I4: و التونسيين بالخارج
A5: Caisse Nationale de sécurité sociale | I5: الصندوق الوطني للضمان الاجتماعي
A6: Bureau régionale Sfax Medina | I6: المكتب الجهوي صفاقس المدينة
A8: TR | B8: Année | C8: Numéro Employeur | F8: BR | H8: Nom et adresse de l'employeur
A9: ='CNSS ACHRAF SF1694 012023'!Z21 -> 1 | B9: ='CNSS ACHRAF SF1694 012023'!AA21 -> 2023 | C9: ='CNSS ACHRAF SF1694 012023'!W21 -> 242758 | F9: ='CNSS ACHRAF SF1694 012023'!Y21 -> 64 | H9: ='CNSS ACHRAF SF1694 012023'!W6 -> 0
A10: Permanent | C10: Occasionnels | E10: Nbre Tot. salariés
H11: ='CNSS ACHRAF SF1694 012023'!W9 -> 0
B13: CODE | D13: 00 | H13: Salaires Déclarés | I13: Taux De Cotisation | K13: Montant à Payer
H14: ='CNSS ACHRAF SF1694 012023'!Q30 -> 85975000 | I14: Sécurité Sociale | J14: 0.2575 | K14: =H14*J14 -> 22138562.5
I15: Accident Du Travail | J15: 0.006 | K15: =H14*J15 -> 515850
A16: Nom Opérateur | D16: ='CNSS ACHRAF SF1694 012023'!W13 -> 0 | I16: Total à Payer | K16: =K14+K15 -> 22654412.5
A17: N° de Tél | D17: ='CNSS ACHRAF SF1694 012023'!W15 -> 0
A18: La présente déclaration de salaires certifiée sincère et conforme à nos documents comptables est arrêtée à la somme de :
A21: Mode de paiement :
A22: Chéque N° | C22: Banque | I22: Fait à , Sfax le : | K22: =TODAY() -> 2023-01-27
A23: Virement bancaire sur : | I23: Signature et cachet de l'employeur

Sheet CdC
D7: Générer un fichier Txt à partir un fichier Excel
D9: KARROUMAYAGHALI - 26 janv. 2023 à 12:01
D10: KARROUMAYAGHALI - 27 janv. 2023 à 15:01
D11: Bonjour ALL,
D13: je suis vraiment nouveau dans la programmation, je suis à la recherche d'une procédure, qui va me permettre de mettre en place un macro à l'aide d'un bouton dans un fichier Excel pour générer un fichier texte (txt) ( sachant que le fichier doit être générer a partir de la 3éme feuille du mon fichier Excel .
D14: la 3 ème feuille son nom est CNSS comporte
D15: - une entête sur 4 lignes
D16: - les valeurs a enregistrer dans le fichier commencent à partir de la 5 ème ligne 2 ème colonne ( B5 ) comportant :
D17: * matricule1:8 caractères ; clé1 : 2 caractères ; codeExp: 4 chiffre ; trimestre : 1 c ; Année : 4 c ; Num page : 3 c; Num ligne 2 c ; matricule2 : 8 c; clé2 : 2c ;Identité : 60c ; num carte : 8c; salaire: 10 c; zone : 10 c
D18: il ya maximum 100 lignes
D19: ( L'enregistrement sans espaces ou caractères )
D20: 0024275864000012023001010000000000aaaaaaaaaaaaaaaaaaaaaaaaaaa 0000000000090000000000000000
D21: nom du fichier à générer : matricule1cle1codeExp.TrimstreAnnée
D22: Répertoire : au choix
D23: le nom
D24: Achraf
